Cogmind - Beta 13 @@@ ROGUE MODE // 2024.04.20 @ 11:44:34 Player: cupboard Result: Destroyed by Y-45 Defender with Heavy Assault Rifle Performance ------------- Evolutions (2) 1000 Regions Visited (5) 1000 Robots Destroyed (30) 150 Value Destroyed (786) 786 Prototype IDs (0) 0 Alien Tech Used (0) 0 Bonus (0) 0 TOTAL SCORE: 2936 Bonus ------- None Cogmind --------- Core Integrity 0/550 Matter 290/300 Energy 72/100 System Corruption 0% Temperature Cool (39) Movement Core (350) Ox6 Location -8/Materials Parts ------- > --- POWER (1) -------- (None) > --- PROPULSION (3) --- (None) > --- UTILITY (3) ------ Medium Storage Unit ECM Suite > --- WEAPON (4) ------- Particle Gun Ion Cannon > --- INVENTORY (10) --- Flight Unit High-capacity Battery (250) Medium Matter Pod (100) Peak State ------------ > --- POWER ------------ Light Nuclear Core > --- PROPULSION ------- Aluminum Leg Aluminum Leg > --- UTILITY ---------- Medium Storage Unit High-capacity Battery ECM Suite > --- WEAPON ----------- Particle Gun EM Pulse Cannon Particle Cannon Improved Datajack > --- INVENTORY -------- Light Ion Engine Improved Heat Sink Medium Matter Pod [Rating: 18] Favorites ----------- Power Light Ion Engine Engine Light Ion Engine Power Core Light Nuclear Core Propulsion Aluminum Leg Leg Aluminum Leg Hover Unit Hover Unit Flight Unit Flight Unit Utility Medium Storage Unit Device ECM Suite Storage Medium Storage Unit Weapon Hammer Energy Gun Small Laser Energy Cannon Particle Cannon Ballistic Gun Makeshift Shrapnel Gun Launcher Grenade Launcher Special Weapon Mining Laser Impact Weapon Hammer Special Melee Weapon Improved Datajack Build | -11 -10 -10 -10 -9 -8 ------- Run | Yrd Mat Min Exi Min Mat Slots Evolved 4 | . . . . . 4 Power . | . . . . . . Propulsion 1 | . . . . . 1 Utility 1 | . . . . . 1 Weapon 2 | . . . . . 2 Parts Attached 49 | 6 6 14 3 3 17 Power 6 | 1 1 1 . 1 2 Engine 5 | 1 1 1 . 1 1 Core 1 | . . . . . 1 Reactor . | . . . . . . Propulsion 18 | 2 3 9 . . 4 Treads . | . . . . . . Leg 12 | 2 1 5 . . 4 Wheel . | . . . . . . Hover 1 | . . 1 . . . Flight 5 | . 2 3 . . . Utility 6 | 1 . . 2 . 3 Device 2 | . . . . . 2 Storage 4 | 1 . . 2 . 1 Processor . | . . . . . . Hackware . | . . . . . . Protection . | . . . . . . Artifact . | . . . . . . Weapon 19 | 2 2 4 1 2 8 Energy Gun 7 | 2 . 2 . 1 2 Energy Cannon 4 | . . . . . 4 Ballistic Gun 2 | . 1 . 1 . . Ballistic Cannon . | . . . . . . Launcher 2 | . . 1 . 1 . Special Weapon 1 | . 1 . . . . Impact Weapon 2 | . . 1 . . 1 Slashing Weapon . | . . . . . . Piercing Weapon . | . . . . . . Special Melee Weapon 1 | . . . . . 1 Unidentified Prototypes . | . . . . . . Parts Lost 25 | . 4 5 . 2 14 Power 5 | . 1 1 . 1 2 Propulsion 7 | . 1 2 . . 4 Utility 1 | . . . . . 1 Weapon 12 | . 2 2 . 1 7 Highest Loss Streak 9 | . 4 2 . 2 9 To Critical Strikes . | . . . . . . Average Slot Usage (%) 74 | . 77 56 80 97 70 Engine 9 | . 13 7 14 12 . Core 1 | . . . . . 7 Leg 23 | . 17 23 28 28 16 Flight 1 | . 9 2 . . . Device 2 | . . . . . 8 Storage 12 | . 8 . 15 28 15 Energy Gun 7 | . 25 16 . 5 8 Energy Cannon 1 | . . . . . 6 Ballistic Gun 3 | . 1 . 7 8 . Launcher 1 | . . . . 6 2 Impact Weapon 7 | . . 5 14 7 2 Naked Turns . | . . . . . . Heaviest Build 28 | 13 13 5 19 19 28 Greatest Support 30 | 20 20 20 20 20 30 Greatest Overweight (x) 4 | . 1 . . . 4 Average Overweight (x) . | . . . . . . Largest Inventory Capacity 10 | 8 8 5 10 10 10 Average Capacity 7 | 7 6 5 7 10 10 Most Carried 10 | 5 8 5 6 10 8 Average Carried 4 | 3 5 3 4 8 4 Final Capacity 10 | 8 5 5 10 10 10 Final Carried 8 | 4 4 5 6 8 3 Class Distribution -------------------- 72% | Mutant 27% | Scavenger-Mutant Dominant Class ---------------- Mutant | -10/Materials Mutant | -10/Mines Scavenger-Mutant | -10/Exiles Scavenger-Mutant | -9/Mines Mutant | -8/Materials Resources | -11 -10 -10 -10 -9 -8 ----------- Run | Yrd Mat Min Exi Min Mat Matter Collected 749 | 166 224 129 50 80 100 Remotely . | . . . . . . Salvage Created 864 | . 344 105 . 61 354 Parts 40 | . 18 3 . 2 17 Haulers Intercepted . | . . . . . . Recyclers Shooed . | . . . . . . Parts Field Recycled . | . . . . . . Retrieved Matter . | . . . . . . Parts Self-Destructed . | . . . . . . Prevented . | . . . . . . Kills | -11 -10 -10 -10 -9 -8 ------- Run | Yrd Mat Min Exi Min Mat Combat Hostiles Destroyed 24 | . 6 5 . 2 11 Melee 2 | . . 1 . . 1 Guns 12 | . 6 3 . . 3 Cannons 4 | . . . . . 4 AOE 5 | . . . . 2 3 Classes Destroyed 6 | . 5 . . 1 . Worker 2 | . 2 . . . . Builder 2 | . 2 . . . . Recycler 2 | . 2 . . . . Swarmer 10 | . 3 3 . . 4 Grunt 13 | . 3 2 . 1 7 Brawler 1 | . . . . 1 . Best Kill Streak 6 | . 6 2 . 2 4 Combat Bots Only 5 | . 5 2 . 2 4 Max Kills in Single Turn 4 | . 4 1 . 2 3 Gunslinging 1 | . 1 . . . . Exploded 3 | . . . . 2 3 Melee 1 | . . 1 . . 1 Uniques/NPCs Destroyed . | . . . . . . Combat | -11 -10 -10 -10 -9 -8 -------- Run | Yrd Mat Min Exi Min Mat Hostile Shots Fired 231 | . 39 45 . 10 137 Missed 44 | . 10 5 . . 29 Damage Taken 2508 | . 383 377 . 213 1535 Core 771 | . 54 116 . 41 560 Absorbed by Shields . | . . . . . . Regen/Repaired (Parts) 82 | . . . . . 82 Core Remaining (%) 57 | 100 . . . 15 . Volleys Fired 61 | . 22 9 . 3 27 Largest 3 | . 2 2 . 2 3 Hottest 173 | . 100 100 . 54 173 Shots Fired 108 | . 38 15 . 5 50 Gun 76 | . 36 13 . 3 24 Cannon 26 | . . . . . 26 Launcher 2 | . . . . 2 . Special 4 | . 2 2 . . . Kinetic 6 | . 4 . . 2 . Thermal 80 | . 18 15 . 1 46 Explosive 2 | . . . . 2 . Electromagnetic 20 | . 16 . . . 4 Robot Hit Streak 12 | . 5 3 . 3 12 Robot Miss Streak 7 | . 5 3 . 3 7 Penetration Max . | . . . . . . Secondary Targets 3 | . 2 1 . . . Max Gunslinging Chain 1 | . 1 1 . . . Shots Hit Robots 70 | . 23 11 . 3 33 Core Hits 42 | . 13 5 . 4 20 Critical Kills . | . . . . . . Critical Parts Destroyed 1 | . . 1 . . . Critical Strikes 3 | . . 1 . . 2 Burn 2 | . . . . . 2 Smash 1 | . . 1 . . . Melee Attacks 14 | . . 6 . 1 7 Impact 8 | . . 6 . 1 1 Slashing . | . . . . . . Piercing . | . . . . . . Sneak Attacks . | . . . . . . Combat Hostiles . | . . . . . . Follow-up Attacks . | . . . . . . Damage Inflicted 1881 | . 811 199 . 175 696 Guns 627 | . 293 77 . 45 212 Cannons 372 | . . . . . 372 Explosions 686 | . 494 . . 130 62 Melee 144 | . . 112 . . 32 Ramming 28 | . . 10 . . 18 Kinetic 62 | . 17 . . 45 . Thermal 848 | . 191 77 . . 580 Explosive 578 | . 448 . . 130 . Electromagnetic 221 | . 155 . . . 66 Impact 144 | . . 112 . . 32 Slashing . | . . . . . . Piercing . | . . . . . . Highest Corruption 7 | . . . . 7 . Average Corruption 6 | . . . . 6 . Corruption Purged . | . . . . . . Corruption Blocked . | . . . . . . Effects 3 | . . . . 3 . Message Errors 1 | . . . . 1 . Matter Fused 1 | . . . . 1 . Misfires 1 | . . . . 1 . Overload Shots . | . . . . . . Overflow Damage 176 | . 141 32 . . 3 Projectiles 13 | . 13 . . . . Explosions 131 | . 128 . . . 3 Melee 32 | . . 32 . . . Knockbacks . | . . . . . . Impact . | . . . . . . Kinetic . | . . . . . . Secondary . | . . . . . . Self-Inflicted Damage 178 | . 111 . . 33 34 Shots 4 | . 1 . . 2 1 Rammed 7 | . . . . . 7 Targets Rammed 22 | . . 6 . . 16 Kicked 15 | . . 6 . . 9 Crushed . | . . . . . . Highest Temperature 513 | . 222 44 . 4 513 Average Temperature 115 | . 74 17 . 3 162 Received Heat Transfer 891 | . 78 57 . 36 720 Effects 6 | . . . . . 6 Shutdowns 1 | . . . . . 1 Interference 3 | . . . . . 3 Damage (minor) 1 | . . . . . 1 Damage (major) 1 | . . . . . 1 Siege Activations . | . . . . . . Robots Corrupted . | . . . . . . Combat Hostiles . | . . . . . . Parts Fried . | . . . . . . Impact Corruptions 1 | . . 1 . . . Robots Melted . | . . . . . . Combat Hostiles . | . . . . . . Parts Melted 6 | . . 2 . . 4 Heat Transferred 1836 | . 375 175 . . 1286 Parts Sabotaged . | . . . . . . Parts Stolen . | . . . . . . Parts Stripped . | . . . . . . Power Chain Reactions 2 | . 1 . . . 1 Alert | -11 -10 -10 -10 -9 -8 ------- Run | Yrd Mat Min Exi Min Mat Peak Influence 249 | . 249 186 . 57 158 Initial 96 | . . 96 . . 22 Average 83 | . 109 119 . 24 70 Maximum Alert Level 1 | . 1 . . . . Low Security (%) 98 | 100 87 100 . 100 100 Level 1 1 | . 12 . . . . Level 2 . | . . . . . . Level 3 . | . . . . . . Level 4 . | . . . . . . Level 5 . | . . . . . . High Security . | . . . . . . Max Security . | . . . . . . Squads Dispatched 5 | . 2 . . . 3 Investigation 1 | . . . . . 1 Extermination . | . . . . . . Reinforcement 4 | . 2 . . . 2 Assault . | . . . . . . Garrison . | . . . . . . Intercept . | . . . . . . Searches Triggered . | . . . . . . Construction Impeded . | . . . . . . Haulers Reinforced . | . . . . . . Active Scanning Responses . | . . . . . . Cargo Convoy Interrupts . | . . . . . . Stealth | -11 -10 -10 -10 -9 -8 --------- Run | Yrd Mat Min Exi Min Mat Distress Signals 1 | . . . . . 1 Communications Jammed . | . . . . . . Distress Signals . | . . . . . . Times Spotted 38 | . 10 6 . 2 20 Peak Tracking Total 5 | . 5 3 . 2 5 Tactical Retreats 4 | . . 1 . . 3 Traps | -11 -10 -10 -10 -9 -8 ------- Run | Yrd Mat Min Exi Min Mat Traps Triggered . | . . . . . . Indirectly . | . . . . . . Trap Hack Attempts . | . . . . . . Triggered . | . . . . . . Disarmed . | . . . . . . Reprogrammed . | . . . . . . Reused 2 | . . . . . 2 Traps Extracted . | . . . . . . Installed 4 | . . . . . 4 Triggered 2 | . . . . . 2 Most Traps Carried 4 | . . . . 4 4 Machines | -11 -10 -10 -10 -9 -8 ---------- Run | Yrd Mat Min Exi Min Mat Machines Disabled 8 | . 4 3 . . 1 Max in Single Turn 4 | . 4 1 . . 1 Machines Repaired . | . . . . . . Machines Dismantled . | . . . . . . Machines Sabotaged . | . . . . . . Overloaded Fab Kills . | . . . . . . Hacking | -11 -10 -10 -10 -9 -8 --------- Run | Yrd Mat Min Exi Min Mat Machines Accessed 7 | . 1 . 4 . 2 Terminals 2 | . 1 . . . 1 Fabricators . | . . . . . . Repair Stations 1 | . . . . . 1 Recycling Units . | . . . . . . Scanalyzers . | . . . . . . Garrison Access . | . . . . . . Total Hacks 15 | . 1 . 4 . 10 Successful 8 | . 1 . 4 . 3 Failed 7 | . . . . . 7 Catastrophic . | . . . . . . Database Lockouts . | . . . . . . Manual 5 | . . . 5 . . Terminals 5 | . 1 . . . 4 Fabricators . | . . . . . . Repair Stations 6 | . . . . . 6 Recycling Units . | . . . . . . Scanalyzers . | . . . . . . Garrison Access . | . . . . . . Terminal Hacks 6 | . 1 . 4 . 1 Record 4 | . . . 4 . . Terminal Index 1 | . 1 . . . . Alert Level 1 | . . . . . 1 Fabricator Hacks . | . . . . . . Repair Station Hacks 2 | . . . . . 2 Scan Component 1 | . . . . . 1 Repair 1 | . . . . . 1 Recycling Unit Hacks . | . . . . . . Scanalyzer . | . . . . . . Garrison Access Hacks . | . . . . . . Unauthorized Hacks . | . . . . . . Terminals . | . . . . . . Fabricators . | . . . . . . Repair Stations . | . . . . . . Recycling Units . | . . . . . . Scanalyzers . | . . . . . . Garrison Access . | . . . . . . Data Cores Recovered . | . . . . . . Used . | . . . . . . Hacking Detections 3 | . 1 . . . 2 Full Trace Events 1 | . . . . . 1 Feedback Events . | . . . . . . Feedback Blocked . | . . . . . . Robot Schematics Acquired . | . . . . . . Robots Built . | . . . . . . Authchips . | . . . . . . Time . | . . . . . . Total Robot Build Rating . | . . . . . . Part Schematics Acquired . | . . . . . . Parts Built . | . . . . . . Authchips . | . . . . . . Time . | . . . . . . Total Part Build Rating . | . . . . . . Parts Repaired 1 | . . . . . 1 Time 26 | . . . . . 26 Parts Recycled . | . . . . . . Recycled Matter . | . . . . . . Retrieved Matter . | . . . . . . Retrieved Components . | . . . . . . Parts Scanalyzed . | . . . . . . Part Schematics Acquired . | . . . . . . Parts Damaged . | . . . . . . Bothacking | -11 -10 -10 -10 -9 -8 ------------ Run | Yrd Mat Min Exi Min Mat Used RIF Installer . | . . . . . . Robots Hacked 1 | . . . . . 1 Non-combat . | . . . . . . Combat 1 | . . . . . 1 Robot Hacks Applied 1 | . . . . . 1 parse_system 1 | . . . . . 1 Relay Couplers Released . | . . . . . . Fabnet Peak Effective % . | . . . . . . Robots Rewired . | . . . . . . Allies Hacked . | . . . . . . Hacks Repelled . | . . . . . . Allies | -11 -10 -10 -10 -9 -8 -------- Run | Yrd Mat Min Exi Min Mat Total Allies 2 | . . 2 . . . Largest Group 2 | . . 2 . . . Highest-Rated Group 44 | . . 44 . . . Highest-Rated Ally 31 | . . 31 . . . Total Orders . | . . . . . . Ally Attacks 5 | . . 5 . . . Total Damage 38 | . . 38 . . . Kills . | . . . . . . Allies Corrupted . | . . . . . . Allies Melted . | . . . . . . Intel | -11 -10 -10 -10 -9 -8 ------- Run | Yrd Mat Min Exi Min Mat Robot Analysis Total . | . . . . . . Derelict Logs Recovered 1 | . . 1 . . . Drone Launches . | . . . . . . Drone Recoveries . | . . . . . . Exploration | -11 -10 -10 -10 -9 -8 ------------- Run | Yrd Mat Min Exi Min Mat Turns Passed 2695 | 55 209 552 1039 207 633 Spaces Moved 1914 | 41 177 419 860 158 259 Core 29 | 13 . . . . 16 Treads . | . . . . . . Legs 1697 | 28 62 346 860 158 243 Wheels . | . . . . . . Hover . | . . . . . . Flight 188 | . 115 73 . . . Fastest Speed 37 | 50 37 37 120 120 120 Average Speed 117 | 97 68 106 120 120 165 Slowest Speed 260 | 120 120 120 120 120 260 Overloaded Moves . | . . . . . . Propulsion Burnouts . | . . . . . . Robots Hopped 2 | . 2 . . . . Cave-ins Triggered . | . . . . . . Exploration Rate (%) 41 | 5 33 66 93 39 12 Regions Visited 5 Branch Regions 3 Pre-discovered Areas . | . . . . . . Known Exits Taken . | . . . . . . Unknown Exits Taken 5 | 1 1 1 1 1 . Scrap Searched 1 | . . 1 . . . Spaces Dug . | . . . . . . Terrain Destroyed 39 | . 15 . . 20 4 Melee . | . . . . . . Projectile 1 | . 1 . . . . AOE 38 | . 14 . . 20 4 Terrain Rammed . | . . . . . . Walls Destroyed . | . . . . . . Machines Disabled . | . . . . . . Actions | -11 -10 -10 -10 -9 -8 --------- Run | Yrd Mat Min Exi Min Mat Total 2199 | 56 223 494 867 169 390 Wait 69 | . 6 26 1 1 35 Move 1905 | 40 172 418 859 157 259 Hop 2 | . 2 . . . . Pick Up 52 | 10 8 11 4 4 15 Fast Attach . | . . . . . . Attach 34 | 6 3 6 3 2 14 Detach 3 | . 1 . . . 2 Swap 15 | . 3 8 . 1 3 Drop 18 | . 6 4 . . 8 Fire 61 | . 22 9 . 3 27 Melee 14 | . . 6 . 1 7 Ram 7 | . . . . . 7 Kick 15 | . . 6 . . 9 Crush . | . . . . . . Escape Stasis . | . . . . . . Rewire . | . . . . . . Trap 4 | . . . . . 4 Miscellaneous . | . . . . . . Route ------- -11/Scrapyard -10/Materials -10/Mines -10/Exiles (discovered 2 exits: [*Min x2]) -9/Mines -8/Materials History --------- Turn | Location | Event 11 | -11/Scrapyard | Discovered new exit (range 16) 56 | -11/Scrapyard | Entered Materials 230 | -10/Materials | Discovered new exit (range 15) 265 | -10/Materials | Entered Mines 271 | -10/Mines | Lost 4 parts (1p1n2w) 303 | -10/Mines | Met a Derelict bent on vengeance 320 | -10/Mines | Core integrity fell below 50% 326 | -10/Mines | Build established: Mutant 708 | -10/Mines | Learned Materials trap positions 812 | -10/Mines | Deemed a non-threat by the Exiles lab entrance 812 | -10/Mines | Discovered new exit (range 5) 817 | -10/Mines | Entered Exiles 817 | -10/Exiles | Found Exiles lab abandoned 1530 | -10/Exiles | Discovered new exit (range 14) 1568 | -10/Exiles | Build established: Scavenger-Mutant 1715 | -10/Exiles | Discovered new exit (range 10) 1856 | -10/Exiles | Entered Mines 1868 | -9/Mines | Found a hidden stash of uninstalled traps 1940 | -9/Mines | Discovered new exit (range 13) 1975 | -9/Mines | Core integrity fell below 20% 2063 | -9/Mines | Entered Materials 2063 | -8/Materials | Evolved 4 slots: Propulsion x1, Utility x1, Weapon x2 2064 | -8/Materials | Loaded intel: 30 trap records 2274 | -8/Materials | Build established: Mutant 2357 | -8/Materials | Lost 3 parts (2n1w) 2547 | -8/Materials | Repaired Aluminum Leg 2622 | -8/Materials | Core integrity fell below 50% 2641 | -8/Materials | Core integrity fell below 20% 2660 | -8/Materials | Lost 9 parts (2p2n1u4w) 2696 | -8/Materials | Destroyed by Y-45 Defender with Heavy Assault Rifle Last Messages --------------- [Achievement: Fist Fight] R-06 Scavenger collects Lgt. Ion Engine. K-01 Serf collects debris. Acquired Particle Gun. K-01 Serf collects debris. G-47 Trooper suffers critical hit (Burn). Imp. Heat Sink melted. Lgt. Nuclear Core melted. G-47 Trooper destroyed. K-01 Serf collects debris. Acquired Flight Unit. K-01 Serf collects debris. Acquired 10 matter. K-01 Serf collects debris. K-01 Serf cleans the Atomic Centrifuge. K-01 Serf collects debris. K-01 Serf cleans the Atomic Centrifuge. Acquired Ion Cannon. K-01 Serf cleans the Atomic Centrifuge. Atomic Centrifuge disabled. Map ----- +----------------------------------------------------+ | ????????????????????????????????????? | | ????????????????????????????????????? | | ????????????????????????????????????? | | ????????????????????????????????????? | | ????????????????????????????????????? | | ????????????????????????????????????? | | ????????????????????????????????????? | | ????????????????????????????????????? | | ????????????????????????????????????? | | ????????????????????????????????????? | | ????????????????????????????????????? | | ????????????????????????????????????? | | ????????????????????????????????????? | | ????????????????????????????????????? | | ????????????????????????????????????? | | ????????????????????????????????????? | | ?????????? ?????????????????????????? | | ?????????? ?????????????????????????? | | ?????????? ?????????????????????????? | | ?????????? ?????????????????????????? | | ?????????? ?????????????^^??????????? | | ?????????? ?????????????^^??????????? | | ?????????? ?????????????^^??????????? | | ?????????# #????????????????????????? | | ?????????# #######??????????????????? | | ?????????# #@ #??????????????????? | | ?????????# # #??????????????????? | | ?????????# # """ #??????????????????? | | ?????????# # "" #??????????????????? | | ???????### #Y"""k#??????????????????? | | ???????? / #??????????????????? | | ?????????# # = #??????????????????? | | ########## #####+#??????????????????? | | # #% % +??????????????????? | | # """ # %%#####??????????????????? | | # "R #% #######????????????????? | | # """ #% # #####????????????? | | # +% # ????????????? | | # """ #= # * +???????????? | | # """ # # ?????????????? | | # """ # # ###??????????????? | | # # ##????????????????? | | ########## #?????????????????? | | ??######## +?????????????????? | | ??# # #?????????????????? | | ??# %%# #?????????????????? | | ??# %%# #?????????????????? | | ??# % # #?????????????????? | | ??# % #?????????????????? | | ??# # #?????????????????? | +----------------------------------------------------+ Best States ------------- Heat Dissipation 45 Energy Generation 14 Energy Capacity 410 Matter Stores 400 Matter Capacity 400 Sight Range 16 Terrain Scan Density 10 ECM Strength 1 Evasion (%) 62 Item Schematics ----------------- None Robot Schematics ------------------ None Fabricated ------------ Nothing Alien Tech Used ----------------- None Achievements -------------- Fist Fight Challenges ------------ None Game ------ Seed ImpulseDeepStreamer Manual? 0 Play Time 00:32:32 Cumulative 10.4 hours Start 2024.04.20 @ 11:10:08 End 2024.04.20 @ 11:44:34 Sessions 1 Manual Loads 0 Difficulty Rogue Special Mode None Game No. 9 Rogue 9 Adventurer 0 Explorer 0 Win Type - Total 0 Types 0/0/0/0/0/0/0/0/0 Lore% 12 Gallery% 15 Achievement% 12 Wizard Run 0 Options --------- Layout 1 ASCII 0 Keyboard 0 Movement Numpad Keybinds 0 Fullscreen 1 Font 32/SmallcapsGlow Map View 50x35 Zoom Use 0% Tactical HUD 0 Map Filters NONE Filters NONE Steam 1 RUN: 65424312-4dba-43c3-8527-f1897d891009